bitfinex/quotes_BTCUSD_20241216
["timestamp","ask_amount","ask_price","bid_price","bid_amount"]
[1734368268307,0.01745087,106660.0,106630.0,0.1434635]
[1734368268479,0.1743907,106670.0,106630.0,0.1434635]
[1734368268685,0.11174169,106660.0,106630.0,0.0001728]
[1734368268966,0.01745258,106650.0,106630.0,0.0001728]
[1734368269167,0.0174551,106640.0,106630.0,0.0001728]
[1734368269362,0.22782688,106660.0,106630.0,0.0001728]
[1734368269610,0.48903175,106660.0,106630.0,0.0001728]
[1734368270022,0.2269907,106650.0,106630.0,0.0001728]
[1734368270225,0.2269907,106650.0,106630.0,0.00073383]
[1734368270226,0.37262095,106650.0,106630.0,0.00073383]
[1734368270433,0.49780658,106650.0,106630.0,0.00073383]
[1734368270849,0.43563341,106650.0,106630.0,0.00073383]
[1734368271051,0.20864271,106650.0,106630.0,0.00073383]
[1734368271258,0.08345708,106650.0,106630.0,0.00073383]
[1734368271681,0.20864271,106660.0,106630.0,0.00073383]
[1734368271893,0.30293341,106660.0,106630.0,0.00073383]
[1734368272765,0.2379334,106660.0,106630.0,0.00073383]
[1734368273203,0.40484757,106660.0,106630.0,0.00073383]
[1734368273624,0.17786446,106660.0,106630.0,0.00073383]
[1734368274244,0.34501198,106660.0,106630.0,0.00073383]
[1734368275260,0.08357376,106650.0,106630.0,0.00073383]
[1734368277246,0.08369271,106650.0,106630.0,0.00073383]
[1734368277906,0.0186927,106650.0,106630.0,0.00073383]
[1734368280059,0.0186927,106650.0,106640.0,0.15]
[1734368280323,0.0186927,106650.0,106640.0,0.2442907]
[1734368280539,0.38661722,106670.0,106640.0,0.2442907]
[1734368280759,0.01,106670.0,106650.0,0.0942907]
[1734368281216,0.01,106670.0,106660.0,0.2331]
[1734368281426,0.01,106670.0,106660.0,0.3273907]
[1734368281864,0.01,106670.0,106660.0,0.2331]
[1734368282088,0.01,106670.0,106660.0,0.15]
[1734368282287,0.01,106670.0,106650.0,0.15]
[1734368282566,0.01,106670.0,106650.0,0.2442907]
[1734368282961,0.238116,106680.0,106650.0,0.2442907]
[1734368283801,0.07073057,106680.0,106650.0,0.2442907]
[1734368284007,0.07073057,106680.0,106660.0,0.0942907]
[1734368284901,0.20613656,106690.0,106660.0,0.0942907]
[1734368286399,0.41536835,106690.0,106660.0,0.0942907]
[1734368286606,8.65e-05,106680.0,106660.0,0.0942907]
[1734368287730,0.01885694,106680.0,106660.0,0.0942907]
[1734368287936,0.40647884,106700.0,106660.0,0.0942907]
[1734368288182,0.16738543,106690.0,106660.0,0.0942907]
[1734368288475,0.50076954,106700.0,106670.0,0.15]
[1734368288579,0.16738543,106690.0,106670.0,0.15]
[1734368288985,0.33338411,106700.0,106670.0,0.15]
[1734368288986,0.40373624,106700.0,106670.0,0.2442907]
[1734368289208,0.02711902,106700.0,106670.0,0.2442907]
[1734368289756,0.02728723,106700.0,106690.0,0.15]
[1734368289956,0.02728723,106700.0,106690.0,0.2903907]
[1734368290577,0.02728723,106700.0,106690.0,0.2442907]
[1734368291189,0.02728723,106700.0,106690.0,0.50777042]
[1734368292778,0.12597451,106750.0,106700.0,0.05]
[1734368292984,0.12614269,106750.0,106710.0,0.2442907]
[1734368293380,0.0382556,106750.0,106710.0,0.2442907]
[1734368293594,0.04101492,106750.0,106710.0,0.2442907]
[1734368294604,0.0382556,106750.0,106710.0,0.2442907]
[1734368294812,0.0382556,106750.0,106720.0,0.0804]
[1734368295065,0.0382556,106750.0,106720.0,0.3246907]
[1734368296055,0.00016818,106750.0,106730.0,0.2442907]
[1734368297830,0.08332128,106780.0,106730.0,0.2442907]
[1734368298060,0.17817245,106780.0,106730.0,0.2442907]
[1734368298692,0.00056047,106780.0,106730.0,0.2942907]
[1734368299988,8.64e-05,106750.0,106730.0,0.2942907]
[1734368301503,8.64e-05,106750.0,106730.0,0.2442907]
[1734368301724,8.64e-05,106750.0,106730.0,0.2942907]
[1734368302757,0.2628716,106790.0,106730.0,0.2942907]
[1734368302966,0.0942907,106780.0,106730.0,0.2942907]
[1734368303996,0.11159775,106780.0,106730.0,0.2942907]
[1734368304425,0.11159775,106780.0,106730.0,0.0942907]
[1734368304641,0.19471458,106780.0,106730.0,0.0942907]
[1734368305072,0.1947183,106780.0,106730.0,0.0942907]
[1734368305284,0.26196141,106780.0,106730.0,0.0942907]
[1734368305499,0.01731077,106770.0,106730.0,0.0942907]
[1734368305930,0.01731077,106770.0,106730.0,0.2442907]
[1734368306142,0.11160147,106770.0,106730.0,0.15]
[1734368306762,0.0942907,106770.0,106730.0,0.15]
[1734368306975,0.18251065,106770.0,106730.0,0.15]
[1734368307664,0.0942907,106760.0,106730.0,0.15]
[1734368307867,0.16831995,106770.0,106730.0,0.15]
[1734368308073,0.26261065,106770.0,106730.0,0.15]
[1734368311752,0.30007387,106770.0,106730.0,0.15]
[1734368312847,0.23507386,106770.0,106730.0,0.17767728]
[1734368313059,0.21185392,106770.0,106730.0,0.27196798]
[1734368313273,0.03746322,106770.0,106740.0,0.3242907]
[1734368313694,4e-05,106780.0,106740.0,0.3242907]
[1734368313912,0.0943307,106780.0,106740.0,0.3242907]
[1734368314145,4e-05,106780.0,106750.0,0.1974]
[1734368314357,4e-05,106780.0,106760.0,0.2266]
[1734368315216,4e-05,106780.0,106770.0,0.0942907]
[1734368315423,4e-05,106780.0,106770.0,0.2442907]
[1734368317952,0.35004132,106820.0,106770.0,0.2442907]
[1734368318164,0.0942907,106810.0,106770.0,0.24485117]
[1734368319963,0.01746004,106800.0,106770.0,0.24485117]
[1734368320197,0.01704884,106790.0,106770.0,0.00056047]
[1734368320433,0.38476296,106810.0,106770.0,0.00056047]
[1734368320726,0.47893822,106810.0,106770.0,0.00056047]
[1734368321184,0.68925856,106810.0,106770.0,0.00056047]
[1734368321800,0.12448811,106800.0,106770.0,0.00056047]
[1734368322009,0.21877881,106800.0,106770.0,0.00056047]
[1734368322593,0.2189644,106800.0,106770.0,0.00056047]
[1734368322726,0.14523144,106800.0,106770.0,0.00056047]
[1734368323654,0.31146304,106800.0,106770.0,0.00056047]
[1734368324061,0.40584014,106800.0,106770.0,0.00056047]
[1734368324260,0.61362965,106800.0,106770.0,0.00056047]
[1734368324484,0.1246737,106790.0,106770.0,0.00056047]
[1734368324644,0.38298249,106790.0,106770.0,0.00056047]
[1734368324846,0.38298249,106790.0,106760.0,0.22644452]
[1734368325070,0.38354251,106790.0,106760.0,0.22644452]
[1734368325280,0.1246737,106780.0,106760.0,0.22644452]
[1734368325675,0.29146532,106790.0,106770.0,0.2442907]
[1734368325873,0.00056002,106790.0,106770.0,0.27636422]
[1734368326099,0.00056002,106790.0,106780.0,0.1961]
[1734368326327,0.00056002,106790.0,106780.0,0.2903907]
[1734368328054,0.00056002,106790.0,106780.0,0.3706907]
[1734368329041,0.01889123,106800.0,106780.0,0.3706907]
[1734368329247,0.33233829,106810.0,106780.0,0.40535715]
[1734368329663,4e-05,106800.0,106780.0,0.40535715]
[1734368331695,4e-05,106800.0,106780.0,0.23086002]
[1734368331903,0.67068393,106800.0,106780.0,0.00056002]
[1734368332114,0.29140605,106790.0,106780.0,0.00056002]
[1734368332481,0.49977026,106790.0,106780.0,0.00056002]
[1734368332714,0.49978139,106790.0,106780.0,0.00056002]
[1734368332946,0.37675612,106790.0,106780.0,0.00056002]
[1734368333666,0.27523839,106790.0,106780.0,0.00056002]
[1734368333907,0.36952909,106790.0,106780.0,0.00056002]
[1734368334199,0.3772,106780.0,106730.0,0.1290728]
[1734368334453,0.12533251,106750.0,106730.0,0.23628806]
[1734368334692,0.12533251,106750.0,106720.0,0.01774473]
[1734368334963,0.12533251,106750.0,106720.0,0.11203543]
[1734368335470,0.12533251,106750.0,106730.0,0.15]
[1734368335712,0.33422003,106750.0,106730.0,0.0001728]
[1734368335958,0.12533251,106750.0,106730.0,0.00034084]
[1734368336216,0.33422003,106750.0,106730.0,0.00034084]
[1734368336468,0.12533251,106750.0,106730.0,0.00034084]
[1734368336713,0.12553672,106750.0,106730.0,0.00034084]
[1734368336963,0.12553672,106750.0,106720.0,0.2442907]
[1734368336964,0.33476459,106750.0,106720.0,0.24199953]
[1734368337223,0.33476459,106750.0,106720.0,0.27022217]
[1734368337491,0.0473,106760.0,106720.0,0.27022217]
[1734368338013,0.02003605,106760.0,106720.0,0.27022217]
[1734368338293,0.0942907,106770.0,106720.0,0.27022217]
[1734368338551,0.2267601,106760.0,106720.0,0.27022217]
[1734368338827,0.20930198,106760.0,106720.0,0.27022217]
[1734368339156,0.12558119,106750.0,106740.0,0.15]
[1734368339338,0.0772,106780.0,106740.0,0.26949163]
[1734368339610,8.64e-05,106790.0,106750.0,0.0942907]
[1734368339827,0.01746025,106770.0,106750.0,0.0942907]
[1734368340033,0.13320706,106790.0,106750.0,0.0942907]
[1734368340254,0.0943771,106790.0,106760.0,0.15]
[1734368340495,0.0943771,106790.0,106760.0,0.1989]
[1734368340978,0.09721123,106790.0,106760.0,0.1989]
[1734368341421,0.09777136,106790.0,106760.0,0.1989]
[1734368342277,0.00348066,106790.0,106760.0,0.2931907]
[1734368342455,0.00348066,106790.0,106760.0,0.31839163]
[1734368342835,0.0942907,106790.0,106760.0,0.1989]
[1734368343310,0.0942907,106790.0,106750.0,0.2269]
[1734368343520,0.0942907,106790.0,106750.0,0.3211907]
[1734368343932,0.08373611,106760.0,106750.0,0.3211907]
[1734368344157,0.08373611,106760.0,106740.0,0.0492]
[1734368344408,0.08373611,106760.0,106740.0,0.06208]
[1734368344619,0.08373611,106760.0,106740.0,0.0492]
[1734368344844,0.2930764,106770.0,106730.0,0.0796]
[1734368345047,0.01748967,106760.0,106730.0,0.0796]
[1734368345264,0.01748967,106750.0,106730.0,0.0796]
[1734368345497,0.01748967,106740.0,106730.0,0.09215]
[1734368345778,0.08,106760.0,106720.0,0.0459]
[1734368345988,0.11177629,106750.0,106710.0,0.0753]
[1734368346239,0.11177629,106750.0,106700.0,0.0459]
[1734368346240,0.01748559,106740.0,106700.0,0.0459]
[1734368346464,0.01748559,106730.0,106700.0,0.14075083]
[1734368346691,0.33225527,106750.0,106700.0,0.14075083]
[1734368346692,0.11225527,106760.0,106710.0,0.0942907]
[1734368346919,0.11177148,106750.0,106710.0,0.0942907]
[1734368347147,0.01748078,106740.0,106710.0,0.0942907]
[1734368347375,0.01748078,106730.0,106700.0,0.07359676]
[1734368347611,0.01748078,106720.0,106700.0,0.16788746]
[1734368347825,0.04677147,106740.0,106700.0,0.16788746]
[1734368348063,0.05467414,106740.0,106700.0,0.16788746]
[1734368348272,0.05467414,106740.0,106730.0,0.0001726]
[1734368348895,0.26391798,106740.0,106730.0,0.0001726]
[1734368349104,0.29617325,106740.0,106730.0,0.0001726]
[1734368349335,0.08692941,106740.0,106730.0,0.0001726]
[1734368349571,0.29603322,106740.0,106730.0,0.0001726]
[1734368350245,0.08692941,106740.0,106700.0,0.00056013]
[1734368350480,0.08363946,106720.0,106700.0,0.15056013]
[1734368350744,0.08363946,106720.0,106700.0,0.17783614]
[1734368351167,0.17793016,106720.0,106700.0,0.00056013]
[1734368351421,0.20909866,106710.0,106700.0,0.00056013]
[1734368351632,0.37637759,106710.0,106700.0,0.00056013]
[1734368351873,0.20909866,106710.0,106700.0,0.00056013]
[1734368352275,0.08363946,106710.0,106700.0,0.00056013]
[1734368352837,0.01863945,106710.0,106700.0,0.00056013]
[1734368353097,0.38702883,106720.0,106700.0,0.00056013]
[1734368353500,0.2197499,106720.0,106700.0,0.00056013]
[1734368353653,0.38702883,106720.0,106700.0,0.00056013]
[1734368354055,0.42421972,106720.0,106700.0,0.00056013]
[1734368354307,0.0942907,106710.0,106700.0,0.00056013]
[1734368354518,0.4192841,106710.0,106700.0,0.00056013]
[1734368354900,0.25200517,106710.0,106700.0,0.00056013]
[1734368355115,0.4192841,106710.0,106700.0,0.00056013]
[1734368355480,0.25200517,106710.0,106700.0,0.00056013]
[1734368355681,0.34618043,106710.0,106700.0,0.00056013]
[1734368357102,0.51345936,106710.0,106700.0,0.00056013]
[1734368357518,0.34618043,106710.0,106700.0,0.00056013]
[1734368357720,0.51345936,106710.0,106700.0,0.00056013]
[1734368357926,0.44845935,106710.0,106700.0,0.00056013]
[1734368358376,0.35428409,106710.0,106700.0,0.00056013]
[1734368358583,0.18700516,106710.0,106700.0,0.00056013]
[1734368358992,0.73158409,106710.0,106700.0,0.00056013]
[1734368359208,0.90842748,106710.0,106700.0,0.00056013]
[1734368359415,0.78296828,106710.0,106700.0,0.00056013]
[1734368359653,0.87714354,106710.0,106700.0,0.00073273]
[1734368360076,0.60014354,106710.0,106700.0,0.00073273]
[1734368360272,0.33225527,106700.0,106660.0,0.15]
[1734368360485,0.09342025,106690.0,106660.0,0.15016818]
[1734368362836,0.02842024,106690.0,106650.0,0.01232809]
[1734368363049,0.10505587,106690.0,106650.0,0.106787]
[1734368363686,0.03225527,106680.0,106650.0,0.0124963]
[1734368363891,0.03225527,106680.0,106650.0,0.00016821]
[1734368366673,0.44181137,106690.0,106650.0,0.00016821]
[1734368366899,0.44160194,106690.0,106650.0,0.00016821]
[1734368367343,0.3170143,106690.0,106650.0,0.00016821]
[1734368367760,0.50819799,106690.0,106650.0,0.00016821]
[1734368368194,0.38361035,106690.0,106650.0,0.00016821]
[1734368369278,0.42654597,106680.0,106650.0,0.00016821]
[1734368369487,0.504753,106680.0,106650.0,0.00016821]
[1734368369738,0.03225527,106670.0,106650.0,0.00016821]
[1734368369952,0.12654597,106670.0,106650.0,0.00016821]
[1734368370590,0.0694518,106660.0,106630.0,0.0778728]
[1734368370799,0.05,106610.0,106600.0,0.01774473]
[1734368371029,0.05,106610.0,106600.0,0.11203543]
[1734368371245,0.05,106610.0,106600.0,0.12323897]
[1734368371870,0.05,106630.0,106610.0,0.16774473]
[1734368372089,0.05,106640.0,106630.0,0.15]
[1734368372340,0.05,106640.0,106630.0,0.2442907]
[1734368372779,0.03597798,106660.0,106630.0,0.2442907]
[1734368372997,0.04779578,106660.0,106630.0,0.0942907]
[1734368373417,0.0822,106670.0,106640.0,0.0942907]
[1734368373896,0.0822,106670.0,106640.0,0.2442907]
[1734368374109,0.03597798,106680.0,106640.0,0.2442907]
[1734368374322,0.03716858,106680.0,106640.0,0.2442907]
[1734368374525,0.00016783,106680.0,106640.0,0.2442907]
[1734368374739,0.00016783,106680.0,106650.0,0.34073543]
[1734368374969,0.00016783,106680.0,106660.0,0.1993]
[1734368375177,0.00016783,106680.0,106670.0,0.2442907]
[1734368377725,0.05867224,106710.0,106670.0,0.2442907]
[1734368377952,0.08308732,106710.0,106670.0,0.24445853]
[1734368378153,0.08308732,106710.0,106670.0,0.27560886]
[1734368378556,0.2077183,106710.0,106670.0,0.27560886]
[1734368379172,0.08308732,106710.0,106670.0,0.27560886]
[1734368379588,0.2077183,106710.0,106680.0,0.2287]
[1734368379801,0.2077183,106710.0,106690.0,0.2442907]
[1734368380467,0.24571334,106710.0,106690.0,0.2442907]
[1734368380678,0.41237976,106710.0,106690.0,0.2442907]
[1734368380886,0.24571334,106710.0,106690.0,0.2442907]
[1734368382171,0.20833303,106710.0,106690.0,0.2442907]
[1734368382397,0.37777084,106720.0,106690.0,0.27841268]
[1734368382614,0.20833303,106720.0,106690.0,0.32561268]
[1734368382827,0.14333302,106720.0,106690.0,0.32561268]
[1734368383247,0.36968104,106730.0,106690.0,0.32561268]
[1734368383451,0.0001728,106710.0,106690.0,0.32561268]
[1734368385628,0.0001728,106710.0,106690.0,0.34335741]
[1734368388385,0.0001728,106710.0,106690.0,0.0942907]
[1734368388589,0.0001728,106710.0,106670.0,0.00016783]
[1734368388872,0.03597798,106700.0,106670.0,0.09445853]
[1734368389050,0.52434548,106710.0,106670.0,0.09445853]
[1734368389267,0.55660075,106710.0,106670.0,0.09445853]
[1734368389493,0.12654597,106700.0,106670.0,0.00016783]
[1734368389714,0.21003217,106700.0,106670.0,0.00016783]
[1734368389927,0.2504586,106690.0,106670.0,0.00016783]
[1734368390179,0.2504586,106680.0,106670.0,0.00016783]
[1734368391236,0.0834862,106680.0,106670.0,0.00016783]
[1734368391912,0.20888701,106680.0,106670.0,0.00016783]
[1734368392128,0.0834862,106680.0,106670.0,0.00016783]
[1734368392332,0.37585941,106690.0,106670.0,0.00016783]
[1734368392539,0.37585941,106690.0,106650.0,0.16291256]
[1734368392804,0.31102755,106690.0,106660.0,0.0942907]
[1734368393013,0.0834862,106680.0,106660.0,0.0942907]
[1734368393231,0.34808833,106690.0,106660.0,0.0942907]
[1734368394300,0.24611594,106690.0,106660.0,0.0942907]
[1734368394501,0.24611594,106690.0,106670.0,0.15]
[1734368394502,0.20905516,106690.0,106670.0,0.15]
[1734368394716,0.08365435,106690.0,106680.0,0.0942907]
[1734368394922,0.00016815,106690.0,106680.0,0.0942907]
[1734368397367,0.00016815,106690.0,106670.0,8.64e-05]
[1734368397617,0.20905516,106690.0,106670.0,0.2443771]
[1734368397869,0.14405515,106690.0,106670.0,0.27167936]
[1734368398095,0.14405515,106690.0,106670.0,0.2443771]
[1734368400172,0.14367515,106690.0,106670.0,8.64e-05]
[1734368400791,0.31102828,106690.0,106670.0,8.64e-05]
[1734368401199,0.12550506,106690.0,106670.0,8.64e-05]
[1734368401409,0.29284514,106690.0,106670.0,8.64e-05]
[1734368401629,0.12550506,106690.0,106670.0,8.64e-05]
[1734368401833,0.12550535,106690.0,106660.0,0.02724902]
[1734368402040,0.12550535,106690.0,106660.0,0.2442907]
[1734368402466,0.53987777,106700.0,106670.0,0.0942907]
[1734368403079,0.29284582,106700.0,106670.0,0.0942907]
[1734368403445,0.29284582,106700.0,106650.0,0.01791288]
[1734368403660,0.0828,106690.0,106660.0,0.0942907]
[1734368403878,0.29284582,106700.0,106670.0,0.15]
[1734368404077,0.03822234,106700.0,106680.0,0.0942907]
[1734368404310,0.42344582,106710.0,106680.0,0.0942907]
[1734368404311,0.20830535,106710.0,106680.0,0.0942907]
[1734368404518,0.0828,106710.0,106680.0,0.0942907]
[1734368404731,0.29583378,106720.0,106680.0,0.0942907]
[1734368404939,0.29583378,106720.0,106690.0,0.15]
[1734368405149,0.29583378,106720.0,106690.0,0.2442907]
[1734368405586,0.12849331,106720.0,106690.0,0.2442907]
[1734368406671,0.29583378,106720.0,106690.0,0.2442907]
[1734368406904,0.1748907,106710.0,106660.0,0.01122036]
[1734368407105,0.12550535,106700.0,106680.0,0.00016815]
[1734368407326,0.17230535,106700.0,106680.0,0.00016815]
[1734368407534,0.33964582,106700.0,106680.0,0.00016815]
[1734368407734,0.27464581,106700.0,106680.0,0.00016815]
[1734368407941,0.0806,106690.0,106680.0,0.00016815]
[1734368408188,0.24794047,106690.0,106680.0,0.00016815]
[1734368409022,0.21414047,106700.0,106680.0,0.00016815]
[1734368409231,0.16734047,106700.0,106680.0,0.00016815]
[1734368410299,0.45390139,106710.0,106680.0,0.00016815]
[1734368410502,0.54807665,106710.0,106680.0,0.00016815]
[1734368411007,0.45390139,106710.0,106660.0,0.15]
[1734368411229,0.24488702,106710.0,106670.0,0.0942907]
[1734368412086,0.11647332,106710.0,106670.0,0.0942907]
[1734368412705,0.05147331,106710.0,106670.0,0.1769907]
[1734368413732,0.21881935,106710.0,106670.0,0.1769907]
[1734368413938,0.26674834,106710.0,106670.0,0.1769907]
[1734368414144,0.47593089,106710.0,106670.0,0.1769907]
[1734368414576,0.26674834,106710.0,106680.0,0.15]
[1734368414792,0.4280019,106710.0,106680.0,0.2442907]
[1734368415206,0.8222926,106710.0,106660.0,0.15]
[1734368415421,0.16734604,106700.0,106670.0,0.0942907]
[1734368415627,0.37652859,106700.0,106670.0,0.0942907]
[1734368415883,0.68567806,106700.0,106670.0,0.11871977]
[1734368416334,0.37652859,106700.0,106670.0,0.11871977]
[1734368416736,0.68582334,106700.0,106670.0,0.11871977]
[1734368416942,0.12568155,106690.0,106670.0,0.11871977]
[1734368417516,0.50221014,106700.0,106670.0,0.11871977]
[1734368417988,0.12568155,106690.0,106670.0,0.11871977]
[1734368418100,0.06068154,106690.0,106670.0,0.11871977]
[1734368418748,0.37652859,106700.0,106680.0,0.15]
[1734368418956,0.37652859,106700.0,106680.0,0.27876268]
[1734368419157,0.16771136,106700.0,106680.0,0.27876268]
[1734368420221,0.08387623,106690.0,106680.0,0.27876268]
[1734368421711,0.25158759,106700.0,106680.0,0.27876268]
[1734368421918,0.25158759,106700.0,106690.0,0.0942907]
[1734368422177,0.08387623,106700.0,106690.0,0.0942907]
[1734368422396,0.08387623,106700.0,106690.0,0.12100843]
[1734368422799,0.01887622,106700.0,106690.0,0.12100843]
[1734368423016,0.01769637,106700.0,106690.0,0.27100843]
[1734368424752,0.01769637,106700.0,106690.0,0.35420843]
[1734368424968,0.16805234,106710.0,106690.0,0.35420843]
[1734368424969,0.16805234,106710.0,106700.0,0.15]
[1734368425175,0.00034098,106710.0,106700.0,0.27876268]
[1734368427997,0.06132065,106740.0,106700.0,0.27876268]
[1734368428222,0.22903201,106740.0,106710.0,0.0942907]
[1734368428442,0.06132065,106740.0,106710.0,0.0942907]
[1734368429007,0.45879056,106750.0,106710.0,0.0942907]
[1734368429222,0.45879056,106750.0,106710.0,0.12100843]
[1734368429431,0.49719484,106750.0,106720.0,0.15]
[1734368429640,0.28755564,106750.0,106720.0,0.2442907]
[1734368429854,0.49719484,106750.0,106720.0,0.2442907]
[1734368430076,0.16771136,106740.0,106720.0,0.27876268]
[1734368430494,0.49719484,106750.0,106720.0,0.27876268]
[1734368430706,0.50002585,106750.0,106720.0,0.27876268]
[1734368431568,0.16771136,106740.0,106720.0,0.27876268]
[1734368432396,0.16771136,106740.0,106720.0,0.27846268]
[1734368432856,0.10271135,106740.0,106720.0,0.27846268]
[1734368433067,0.1866289,106740.0,106720.0,0.27846268]
[1734368433501,0.08391755,106740.0,106720.0,0.27846268]
[1734368434366,0.08391755,106740.0,106720.0,0.2439907]
[1734368434579,0.08374475,106730.0,106700.0,0.00016818]
[1734368434825,0.08374475,106720.0,106700.0,0.09445888]
[1734368435280,0.08374475,106710.0,106700.0,0.09445888]
[1734368436633,0.08374475,106710.0,106700.0,0.00016818]
[1734368436871,0.23871787,106710.0,106700.0,0.00016818]
[1734368437087,0.26689138,106710.0,106700.0,0.00016818]
[1734368437302,0.2389776,106710.0,106700.0,0.00016818]
[1734368437516,0.48548208,106710.0,106700.0,0.00016818]
[1734368437936,0.48548208,106710.0,106680.0,8.64e-05]
[1734368437937,0.43449613,106710.0,106680.0,8.64e-05]
[1734368438156,0.12567931,106690.0,106680.0,8.64e-05]
[1734368438368,0.33514483,106690.0,106680.0,8.64e-05]
[1734368438605,0.12567931,106690.0,106680.0,8.64e-05]
[1734368439028,0.08378195,106690.0,106680.0,0.0943771]
[1734368439237,0.08378195,106690.0,106680.0,0.26882345]
[1734368439444,0.01744963,106690.0,106680.0,0.26882345]
[1734368440879,0.01744963,106690.0,106680.0,0.2443771]
[1734368441127,0.08378195,106700.0,106680.0,8.64e-05]
[1734368441128,0.11170288,106700.0,106680.0,8.64e-05]
[1734368441371,0.25483867,106690.0,106680.0,8.64e-05]
[1734368441736,0.32115067,106690.0,106680.0,8.64e-05]
[1734368442944,0.40493688,106690.0,106680.0,8.64e-05]
[1734368443377,0.23738645,106690.0,106680.0,8.64e-05]
[1734368443795,0.29695237,106690.0,106680.0,8.64e-05]
[1734368444007,0.77495237,106690.0,106680.0,8.64e-05]
[1734368444237,0.77495237,106690.0,106620.0,0.023]
[1734368444238,0.05,106670.0,106620.0,0.023]
[1734368444447,0.05,106670.0,106640.0,0.0942907]
[1734368445559,0.05016802,106670.0,106640.0,0.0942907]
[1734368445780,0.05016802,106670.0,106640.0,0.11871977]
[1734368445781,0.05,106660.0,106640.0,0.11871977]
[1734368445993,0.05,106660.0,106640.0,0.0942907]
[1734368446228,0.13377243,106660.0,106640.0,0.0942907]
[1734368447305,0.13377243,106660.0,106640.0,0.2442907]
[1734368447513,0.06744482,106660.0,106650.0,0.27132691]
[1734368448217,0.10121857,106660.0,106650.0,0.27132691]
[1734368448425,0.01744614,106660.0,106650.0,0.27132691]
[1734368448645,0.01744614,106660.0,106650.0,0.15]
[1734368448863,0.10121857,106660.0,106650.0,0.15]
[1734368449087,0.10121857,106660.0,106650.0,0.11761038]
[1734368449315,0.05,106640.0,106620.0,0.12132691]
[1734368449523,0.05,106640.0,106620.0,0.21561761]
[1734368449767,0.04971869,106640.0,106630.0,0.12132691]
[1734368450207,0.09631869,106650.0,106630.0,0.21561761]
[1734368450419,0.04971869,106650.0,106640.0,0.21561761]
[1734368450849,0.04971869,106650.0,106640.0,0.23717937]
[1734368451060,0.04971869,106650.0,106640.0,0.21561761]
[1734368451276,0.04971869,106650.0,106640.0,0.36561761]
[1734368452592,0.04971869,106650.0,106640.0,0.15]
[1734368453230,0.06571868,106660.0,106640.0,0.12132691]
[1734368453877,0.09359989,106660.0,106640.0,0.12132691]
[1734368454079,0.09356667,106660.0,106650.0,0.12132691]
[1734368454294,0.06571868,106660.0,106640.0,0.30342557]
[1734368456032,0.06571868,106660.0,106640.0,0.12142339]
[1734368456897,0.06571868,106660.0,106640.0,0.0942907]
[1734368457564,0.06571868,106660.0,106610.0,0.40910218]
[1734368457803,0.35837086,106660.0,106620.0,0.42629288]
[1734368458023,0.22043173,106660.0,106620.0,0.0942907]
[1734368458237,0.0493,106650.0,106610.0,0.25910218]
[1734368458443,0.0493,106650.0,106610.0,0.37931174]
[1734368458652,0.20255817,106650.0,106610.0,0.37931174]
[1734368459107,0.20255817,106650.0,106610.0,0.27629288]
[1734368459311,0.28612567,106650.0,106610.0,0.27629288]
[1734368459515,0.28612567,106650.0,106620.0,0.15]
[1734368459729,0.28612567,106650.0,106610.0,0.2442907]
[1734368459730,0.0835675,106640.0,106610.0,0.2442907]
[1734368459937,0.0835675,106640.0,106610.0,0.27629288]
[1734368460141,0.11140331,106640.0,106620.0,0.15]
[1734368460948,0.18880331,106640.0,106620.0,0.15]
[1734368461199,0.01740737,106630.0,106620.0,0.15]
[1734368461650,0.01740737,106630.0,106620.0,0.18200218]
[1734368461858,0.01740737,106630.0,106620.0,0.42629288]
[1734368462074,0.01740737,106630.0,106620.0,0.55460217]
[1734368462288,0.01740737,106650.0,106640.0,0.0777]
[1734368462502,0.07340861,106670.0,106650.0,0.15]
[1734368462733,0.02800861,106670.0,106660.0,0.42629288]
[1734368462947,0.4910086,106690.0,106670.0,0.15]
[1734368463172,0.4910086,106690.0,106670.0,0.18991882]
[1734368463173,0.0174072,106680.0,106670.0,0.18991882]
[1734368463435,0.0174072,106680.0,106670.0,0.28420952]
[1734368463648,0.4412086,106690.0,106670.0,0.28420952]
[1734368463864,0.4412086,106690.0,106680.0,0.42629288]
[1734368464076,0.4412086,106690.0,106680.0,0.60829506]
[1734368464291,0.44137665,106690.0,106680.0,0.65890435]
[1734368464502,0.44137665,106690.0,106680.0,0.73590435]
[1734368465142,0.44137665,106690.0,106680.0,0.37189999]
[1734368465350,0.44137665,106690.0,106680.0,0.47690217]
[1734368465998,0.44137665,106690.0,106680.0,0.15]
[1734368466207,0.44137665,106690.0,106680.0,0.42629288]
[1734368466633,0.44137665,106690.0,106680.0,0.15]
[1734368467053,0.0799,106680.0,106640.0,0.25720218]
[1734368467343,0.1741907,106680.0,106650.0,0.18200218]
[1734368467553,0.1741907,106680.0,106650.0,0.21715147]
[1734368467974,0.1741907,106680.0,106660.0,0.18200218]
[1734368467975,0.01489999,106680.0,106660.0,0.18200218]
[1734368468180,0.67009493,106690.0,106660.0,0.18200218]
[1734368468418,0.54503676,106690.0,106660.0,0.0942907]
[1734368468627,0.54503676,106690.0,106680.0,0.18200218]
[1734368468628,0.46154945,106690.0,106680.0,0.18200218]
[1734368468840,0.46154945,106690.0,106670.0,0.18200218]
[1734368469049,0.46154945,106690.0,106660.0,0.0952778]
[1734368469282,0.46154945,106690.0,106670.0,0.15]
[1734368469494,0.46154945,106690.0,106670.0,0.33200218]
[1734368470135,0.46154945,106690.0,106670.0,0.42629288]
[1734368470767,0.46154945,106690.0,106670.0,0.15]
[1734368470978,0.69611952,106690.0,106660.0,0.1509871]
[1734368471395,0.82135049,106690.0,106660.0,0.1509871]
[1734368471930,0.82135049,106690.0,106670.0,0.15]
[1734368472519,0.74536773,106690.0,106670.0,0.33200218]
[1734368472721,0.48003675,106690.0,106670.0,0.33200218]
[1734368473177,0.48003675,106690.0,106670.0,0.15]
[1734368473380,0.60526772,106690.0,106670.0,0.15]
[1734368473595,0.48003675,106690.0,106670.0,0.15]
[1734368473807,0.57421201,106690.0,106670.0,0.15]
[1734368474161,0.39654944,106690.0,106670.0,0.33200218]
[1734368474371,0.39654944,106690.0,106670.0,0.42629288]
[1734368474583,0.39654944,106690.0,106680.0,0.18200218]
[1734368474790,0.39654944,106690.0,106670.0,0.27629288]
[1734368475007,0.39654944,106690.0,106670.0,0.15]
[1734368475008,0.48006998,106690.0,106670.0,0.15]
[1734368475219,0.67483355,106690.0,106670.0,0.15]
[1734368475428,0.84187463,106690.0,106670.0,0.15]
[1734368475651,0.08352054,106680.0,106670.0,0.15]
[1734368475876,0.75835409,106690.0,106670.0,0.15]
[1734368475877,0.84187463,106690.0,106670.0,0.15]
[1734368476055,0.08352054,106680.0,106660.0,0.1509871]
[1734368476507,0.08352054,106680.0,106660.0,0.18780096]
[1734368476936,0.08352054,106680.0,106670.0,0.15]
[1734368477182,0.77239187,106690.0,106670.0,0.33200218]
[1734368477899,0.01852053,106680.0,106660.0,0.2452778]